[Event "Karel Janecek Open 2024"]
[Site "Prague"]
[Date "2024.03.07"]
[Round "9.11"]
[White "Svanda, Ondrej"]
[Black "Li, Di"]
[Result "1/2-1/2"]
[ECO "D78"]
[WhiteElo "2369"]
[BlackElo "2563"]
[Annotator "TA"]
[PlyCount "51"]
[EventDate "2024.02.22"]
[EventType "swiss"]
[EventCountry "CZE"]
[SourceTitle "playchess.com"]
[Source "ChessBase"]
[SourceQuality "1"]
[TimeControl "40/5400+30:1800+30"]

{[%evp 17,51,12,11,-1,-3,0,0,0,0,-3,0,0,14,14,30,14,33,0,0,9,0,-11,40,56,35,64,56,47,69,42,55,0,57,0,41,0]} 1. c4 {[%emt 0:00:03]} Nf6 {[%emt 0:04:07]} 2. g3 {[%emt 0:00:11]} c6 {[%emt 0:01:04]} 3. Nf3 {[%emt 0:00:09]} d5 {[%emt 0:00:06]} 4. Bg2 {[%emt 0:00:03]} g6 {[%emt 0:00:47]} 5. b3 {[%emt 0:05:54]} Bg7 {[%emt 0:00:13]} 6. Bb2 {[%emt 0:00:09]} O-O {[%emt 0:00:21]} 7. O-O {[%emt 0:00:03]} a5 {[%emt 0:02:21]} 8. d4 {[%emt 0:08:14]} Bf5 {[%emt 0:04:19]} 9. Nbd2 {[%emt 0:09:24]} Ne4 {[%emt 0:04:31]} 10. Ne1 {[%emt 0:05:48][%cal Bf3e1,Be1c2,Bc2a3,Ba3b5][%mdl 32] [#]} a4 $1 {[%emt 0:05:38] aiming for ...a3.} 11. Nxe4 {[%emt 0:08:29]} dxe4 {[%emt 0:05:53]} 12. Nc2 {[%emt 0:14:35] The position is equal.} c5 {[%emt 0:00:59]} 13. e3 {[%emt 0:00:06]} Qc8 {[%emt 0:18:36]} 14. Qc1 {[%emt 0:03:53]} Nd7 {[%emt 0:01:52]} 15. Na3 {[%emt 0:01:29]} h5 {[%emt 0:01:09]} 16. Nb5 {[%emt 0:03:31]} Ra6 {[%emt 0:09:34][%cal Oh5h4]} 17. Rd1 {[%emt 0:02:23]} h4 {[%emt 0:03:14]} 18. Qc2 {[%emt 0:04:45]} hxg3 {[%emt 0:05:23]} 19. hxg3 {[%emt 0:00:01]} Bg4 {[%emt 0:00:55]} (19... cxd4 $11 20. Bxd4 Nc5) 20. Qxe4 $14 {[%emt 0:03:46]} Bxd1 {[%emt 0:00:07]} 21. Rxd1 {[%emt 0:00:01]} axb3 {[%emt 0:00:13]} 22. axb3 {[%emt 0:00:01]} Ra2 {[%emt 0:05:08]} 23. Qb1 {[%emt 0:05:24][%mdl 1024] White has compensation. White is more active.} Ra6 {[%emt 0:00:28]} 24. Qe4 {[%emt 0:00:03][%csl LRb7,LRe7]} Ra2 {[%emt 0:01:49]} 25. Qb1 {[%emt 0:03:47]} (25. Ba3 $5) 25... Ra6 {[%emt 0:00:04]} 26. Qe4 {[%emt 0:00:05][%csl LRb7,LRe7] Weighted Error Value: White=0.17 (very precise) /Black=0.08 (flawless) .  Mistake:       	---       	Black=1      Inaccurate:     	White=3     	---        OK:         	White=5     	Black=8      Best:        	---       	Black=1} 1/2-1/2

[Event "Karel Janecek Open 2024"]
[Site "Prague"]
[Date "2024.03.07"]
[Round "9.12"]
[White "Sadzikowski, Daniel"]
[Black "Shagbazyan, Taron"]
[Result "1-0"]
[ECO "E05"]
[WhiteElo "2497"]
[BlackElo "2403"]
[Annotator "TA"]
[PlyCount "81"]
[EventDate "2024.02.22"]
[EventType "swiss"]
[EventCountry "CZE"]
[SourceTitle "playchess.com"]
[Source "ChessBase"]
[SourceQuality "1"]
[TimeControl "40/5400+30:1800+30"]

{[%evp 20,81,20,8,12,19,16,14,29,17,22,23,26,14,27,31,38,25,45,56,56,34,34,27,70,62,72,70,68,73,67,65,99,95,159,115,299,299,456,463,542,549,549,542,535,508,618,548,29971,29972,29971,29973,5712,4802,4910,2781,4914,4149,29975,29975,29980,29981,29979,29978]} 1. Nf3 {[%emt 0:00:04]} Nf6 {[%emt 0:10:43]} 2. g3 {[%emt 0:00:06]} d5 {[%emt 0:00:08]} 3. Bg2 {[%emt 0:00:05]} e6 {[%emt 0:00:03]} 4. O-O {[%emt 0:00:45]} Be7 {[%emt 0:00:02]} 5. c4 {[%emt 0:00:27]} O-O {[%emt 0:00:05]} 6. d4 {[%emt 0:00:05]} dxc4 {[%emt 0:00:11]} 7. Qc2 {[%emt 0:00:05]} a6 {[%emt 0:00:27]} 8. a4 {[%emt 0:00:20]} Bd7 {[%emt 0:00:44]} 9. Qxc4 {[%emt 0:01:33]} Bc6 {[%emt 0:00:48]} 10. Bf4 {[%emt 0:00:09]} Nbd7 {[%emt 0:03:44]} 11. Nc3 {[%emt 0:11:10]} Bd6 {[%emt 0:02:29]} 12. Bxd6 {[%emt 0:15:21]} cxd6 {[%emt 0:00:08]} 13. Qb4 {[%emt 0:00:06]} Qb8 {[%emt 0:08:12] Die Stellung ist ausgeglichen.} 14. Rfe1 {[%emt 0:16:00]} Bxf3 {[%emt 0:06:38]} 15. Bxf3 {[%emt 0:00:08]} d5 {[%emt 0:00:02]} 16. e4 {[%emt 0:00:09]} dxe4 {[%emt 0:00:24]} 17. Nxe4 {[%emt 0:02:47]} Nxe4 {[%emt 0:00:41]} 18. Rxe4 {[%emt 0:04:22]} a5 {[%emt 0:12:47]} 19. Qb5 {[%emt 0:11:05]} Qd6 {[%emt 0:01:27]} 20. Rc1 {[%emt 0:00:35]} (20. Qxb7 $2 {geht unter.} Rfb8 $19) 20... Nf6 {[%emt 0:10:45]} 21. Re3 {[%emt 0:07:15]} Rfd8 {[%emt 0:07:42]} 22. Qxb7 {[%emt 0:04:51] Weiß steht deutlich aktiver.} Rab8 {[%emt 0:03:21]} 23. Qa7 {[%emt 0:00:55]} Qxd4 {[%emt 0:03:51]} 24. Qxa5 {[%emt 0:03:46] [#] Und jetzt Rd1 wäre schön.} Qxb2 {[%emt 0:05:25]} 25. Qc3 {[%emt 0:03:06]} Qb6 {[%emt 0:05:13]} 26. a5 {[%emt 0:03:54][%cal Ba4a5,Ba5a6,Ba6a7][%mdl 32]} Qd6 {[%emt 0:00:32]} ({Günstiger ist} 26... Qa7) 27. Qc6 {[%emt 0:02:30]} Qf8 $2 {[%emt 0:02:55] Verliert die Partie.} (27... Qxc6 $16 28. Bxc6 (28. Rxc6 Rb1+ 29. Kg2 g5 $16) 28... Rdc8) 28. a6 $18 {[%emt 0:02:43]} Nd5 {[%emt 0:00:40]} (28... Qe7 {kämpft weiter.} 29. Qc7 Qxc7 30. Rxc7 Rb1+ 31. Kg2 Ra1) 29. Bxd5 {[%emt 0:05:11]} exd5 {[%emt 0:01:00]} 30. a7 {[%emt 0:00:18]} Ra8 {[%emt 0:00:39][%cal Od5d4]} 31. Qb7 {[%emt 0:00:26]} d4 {[%emt 0:01:25]} 32. Rd3 {[%emt 0:01:17]} Qe8 {[%emt 0:02:55]} 33. Rc7 {[%emt 0:03:09] Wehrt Rd7 ab. Rf3 wäre nun fies.} Qe2 {[%emt 0:06:51] [#]} 34. Rxd4 {[%emt 0:00:29][%mdl 512]} Qe8 {[%emt 0:03:59]} 35. Rxd8 {[%emt 0:02:02]} Rxd8 {[%emt 0:00:13] KQR-KQR} 36. Re7 {[%emt 0:00:16]} Qf8 {[%emt 0:00:41]} 37. Qe4 {[%emt 0:00:28]} g6 {[%emt 0:00:31]} 38. Qb7 {[%emt 0:00:45]} h5 {[%emt 0:00:34]} 39. h4 {[%emt 0:00:39] Weiß setzt Matt.} Kg7 {[%emt 0:00:31]} 40. Qb2+ {[%emt 0:00:00]} Kh6 41. Qf6 {[%emt 0:08:29] Gewichteter Fehlerwert: Weiß=0.04 (makellos) /Schwarz=0.71.  Verlustzug:     	---       	Schwarz=1     Fehler:       	---       	Schwarz=2     Ungenau:       	---       	Schwarz=3     OK:         	Weiß=12    	Schwarz=8     Bester:       	Weiß=3     	---} 1-0

[Event "Karel Janecek Open 2024"]
[Site "Prague"]
[Date "2024.03.07"]
[Round "9.13"]
[White "Kraus, Tomas"]
[Black "Simek, Petr"]
[Result "1/2-1/2"]
[ECO "C50"]
[WhiteElo "2484"]
[BlackElo "2291"]
[Annotator "RC"]
[PlyCount "75"]
[EventDate "2024.02.22"]
[EventType "swiss"]
[EventCountry "CZE"]
[SourceTitle "playchess.com"]
[Source "ChessBase"]
[SourceQuality "1"]
[TimeControl "40/5400+30:1800+30"]

1. e4 {[%emt 0:00:07]} e5 {[%emt 0:00:31]} 2. Nf3 {[%emt 0:00:39]} Nc6 {[%emt 0:00:05]} 3. Bc4 {[%emt 0:00:47]} Nf6 {[%emt 0:00:07]} 4. d3 {[%emt 0:00:36]} Bc5 {[%emt 0:00:05]} 5. Bg5 {[%emt 0:00:40]} h6 {[%emt 0:00:32]} 6. Bh4 {[%emt 0:00:07]} Be7 {[%emt 0:00:34]} 7. Bg3 {[%emt 0:01:02]} d6 {[%emt 0:00:14]} 8. a4 {[%emt 0:01:21]} Na5 {[%emt 0:20:51]} 9. Ba2 {[%emt 0:01:41]} c5 {[%emt 0:00:08]} 10. O-O {[%emt 0:09:50]} Nc6 {[%emt 0:01:50]} 11. c3 {[%emt 0:03:17]} O-O {[%emt 0:00:10]} 12. Re1 {[%emt 0:04:42]} Nh7 {[%emt 0:13:05]} 13. Nbd2 {[%emt 0:05:46]} Ng5 {[%emt 0:01:06]} 14. h3 {[%emt 0:13:21]} Be6 {[%emt 0:01:50]} 15. Bxe6 {[%emt 0:05:13]} Nxe6 {[%emt 0:01:30]} 16. Nc4 {[%emt 0:01:22]} Bg5 {[%emt 0:00:54]} 17. a5 {[%emt 0:04:38]} Rc8 {[%emt 0:00:29]} 18. Qb3 {[%emt 0:03:11]} Qd7 {[%emt 0:02:31]} 19. Nh2 {[%emt 0:03:26]} Bf4 {[%emt 0:02:52]} 20. Nf1 {[%emt 0:03:35]} Kh7 {[%emt 0:15:08]} 21. Nfe3 {[%emt 0:03:41]} Bxe3 {[%emt 0:05:30]} 22. Nxe3 {[%emt 0:00:06]} Ne7 {[%emt 0:00:14]} 23. Bh2 {[%emt 0:07:20]} Rfd8 {[%emt 0:02:25]} 24. Rf1 {[%emt 0:07:01]} f6 {[%emt 0:02:58]} 25. Nd5 {[%emt 0:05:28]} Re8 {[%emt 0:02:53]} 26. Nxe7 {[%emt 0:04:29]} Rxe7 {[%emt 0:00:08]} 27. f4 {[%emt 0:01:07]} exf4 {[%emt 0:00:39]} 28. Bxf4 {[%emt 0:00:14]} Nxf4 {[%emt 0:07:30]} 29. Rxf4 {[%emt 0:00:03]} Re5 {[%emt 0:00:11]} 30. c4 {[%emt 0:01:08]} Rce8 {[%emt 0:02:02]} 31. Raf1 {[%emt 0:01:01]} R8e7 {[%emt 0:00:07]} 32. Qc3 {[%emt 0:00:23]} Qc6 {[%emt 0:00:16]} 33. Kh2 {[%emt 0:00:50]} Kg8 {[%emt 0:00:05]} 34. g4 {[%emt 0:00:59]} b5 {[%emt 0:01:34]} 35. axb6 {[%emt 0:01:38]} Qxb6 {[%emt 0:00:04]} 36. Ra1 {[%emt 0:02:15]} Rb7 {[%emt 0:00:06]} 37. Rf2 {[%emt 0:00:20]} Re8 {[%emt 0:00:11]} 38. Kg2 {[%emt 0:02:07]} 1/2-1/2

[Event "Karel Janecek Open 2024"]
[Site "Prague"]
[Date "2024.03.07"]
[Round "9.14"]
[White "Quintiliano, Renato R."]
[Black "Ivanov, Mike"]
[Result "1/2-1/2"]
[ECO "E04"]
[WhiteElo "2493"]
[BlackElo "2356"]
[Annotator "TA"]
[PlyCount "171"]
[EventDate "2024.02.22"]
[EventType "swiss"]
[EventCountry "CZE"]
[SourceTitle "playchess.com"]
[Source "ChessBase"]
[SourceQuality "1"]
[TimeControl "40/5400+30:1800+30"]

{[%evp 76,171,158,110,141,127,142,97,104,108,141,145,177,183,200,189,183,115,148,0,188,188,185,202,189,23,23,19,34,0,16,17,10,8,35,0,0,0,0,0,0,0,0,0,0,0,68,59,66,73,81,0,0,0,0,0,0,0,0,-40,-48,-48,0,0,996,995,746,413,387,0,0,0,0,0,0,0,0,0,0,0,0,0,0,0,0,0,0,0,0,0,0,0,0,0,0,0,0,0]} 1. d4 {[%emt 0:00:03]} Nf6 {[%emt 0:08:18]} 2. c4 {[%emt 0:00:19]} Nc6 {[%emt 0:00:11]} 3. Nf3 {[%emt 0:01:32]} e6 {[%emt 0:00:22]} 4. g3 {[%emt 0:02:25]} d5 {[%emt 0:01:05]} 5. Bg2 {[%emt 0:00:37]} dxc4 {[%emt 0:02:12]} 6. O-O {[%emt 0:00:23]} Rb8 {[%emt 0:01:02]} 7. Nc3 {[%emt 0:00:34]} b5 {[%emt 0:16:25] 7...b5 ist besser als 7...a6.} 8. Ne5 {[%emt 0:00:18]} Nxe5 {[%emt 0:11:52] E04: Katalanisch.} 9. dxe5 {[%emt 0:00:06]} Nd7 {[%emt 0:05:09]} 10. Qc2 {[%emt 0:00:08]} Bb7 {[%emt 0:07:54]} 11. Bxb7 {[%emt 0:01:41]} Rxb7 {[%emt 0:00:01]} 12. Rd1 {[%emt 0:02:28]} Qc8 {[%emt 0:09:51]} 13. a4 {[%emt 0:28:12]} b4 {[%emt 0:03:01]} 14. Ne4 {[%emt 0:00:17]} Be7 $146 {[%emt 0:00:05]} ({Predecessor:} 14... c3 15. Rb1 cxb2 16. Bh6 b3 17. Qc3 Bb4 18. Nd6+ Kf8 19. Qxb4 cxd6 20. Qxd6+ Kg8 {1-0 Bai,J (2585)-Bu,X (2677) Danzhou 14th rapid 2023 (3)}) 15. Bf4 {[%emt 0:02:12]} O-O {[%emt 0:04:47]} 16. Qxc4 {[%emt 0:05:44]} c5 {[%emt 0:00:30]} 17. a5 {[%emt 0:08:41]} Qc6 {[%emt 0:00:29]} 18. Nd6 {[%emt 0:11:01]} Rbb8 {[%emt 0:00:55]} 19. b3 {[%emt 0:20:59]} Rfd8 {[%emt 0:06:13]} 20. Ne4 {[%emt 0:00:43]} Nf8 {[%emt 0:01:55]} 21. Bg5 {[%emt 0:03:06]} Bxg5 {[%emt 0:01:39]} 22. Nxg5 {[%emt 0:00:06]} Rd5 {[%emt 0:04:08]} 23. Rac1 {[%emt 0:02:10]} h6 {[%emt 0:05:49]} 24. Ne4 {[%emt 0:02:35]} Rxe5 {[%emt 0:01:52]} 25. Nxc5 {[%emt 0:00:10]} Rc8 {[%emt 0:01:32]} 26. Nd3 {[%emt 0:00:16]} Qxc4 {[%emt 0:00:22]} 27. Rxc4 {[%emt 0:00:05]} Rxc4 {[%emt 0:00:18]} 28. Nxe5 {[%emt 0:00:04]} Rc5 {[%emt 0:00:29]} 29. Nc4 {[%emt 0:00:18]} Rc8 {[%emt 0:02:13]} 30. Rd4 {[%emt 0:01:29]} f6 {[%emt 0:00:48]} 31. f4 {[%emt 0:00:17]} Rb8 {[%emt 0:01:19]} 32. Rd6 {[%emt 0:00:33]} Rc8 {[%emt 0:00:59]} 33. Kf2 {[%emt 0:01:18]} Rc7 {[%emt 0:01:53]} 34. Rd8 {[%emt 0:00:34]} Kf7 {[%emt 0:00:32]} 35. Rb8 {[%emt 0:00:46]} Nd7 {[%emt 0:00:08]} 36. Rxb4 {[%emt 0:00:07]} Nc5 {[%emt 0:00:12]} 37. Rb8 {[%emt 0:01:35]} Ke7 {[%emt 0:00:54]} 38. Nd2 {[%emt 0:00:56]} Nd7 {[%emt 0:00:25]} (38... Kd6 $142 39. Kf3 Rb7 40. Ne4+ Ke7) 39. Rb4 {[%emt 0:01:23]} (39. Rg8 $142 Kf7 40. Rh8) 39... f5 {[%emt 0:01:24]} 40. Nc4 {[%emt 0:02:19]} Nf6 {[%emt 0:00:12]} 41. Kf3 {[%emt 0:30:24]} g5 {[%emt 0:02:01]} 42. Rb8 {[%emt 0:00:00]} Nd5 {[%emt 0:06:37]} 43. Rh8 {[%emt 0:00:00]} g4+ {[%emt 0:02:27]} 44. Kg2 $1 {[%emt 0:00:00]} Nf6 {[%emt 0:00:02]} 45. Rxh6 {[%emt 0:00:00]} Rb7 {[%emt 0:02:09]} 46. Rg6 {[%emt 0:00:00]} ({Besser ist} 46. Rh8 $18) 46... Ne8 $16 {[%emt 0:01:22]} 47. Rh6 {[%emt 0:00:50]} Nf6 $1 {[%emt 0:00:07]} 48. Rh8 {[%emt 0:01:25]} (48. Rg6 Ne8 $16) 48... Rxb3 {[%emt 0:00:18]} 49. Ra8 {[%emt 0:01:27]} Rb7 {[%emt 0:00:19]} 50. Ne5 $2 {[%emt 0:00:53]} (50. a6 $1 $18 {[%cal Ra6b7]} Rc7 51. Na3 (51. Ne5 Kd6 $14)) 50... Kd6 $11 {[%emt 0:01:10]} 51. Rd8+ {[%emt 0:01:12]} Kc5 {[%emt 0:04:19]} 52. Rc8+ {[%emt 0:00:36]} Kb5 {[%emt 0:02:40]} 53. Rc6 {[%emt 0:00:06]} Re7 $1 {[%emt 0:00:57]} 54. Rc1 {[%emt 0:00:32]} Re8 {[%emt 0:02:51]} 55. Rc7 {[%emt 0:00:56]} a6 {[%emt 0:01:36]} 56. Rb7+ {[%emt 0:00:27]} (56. Nf7 $5 Ne4 $8 57. Ng5 $14) 56... Kxa5 {[%emt 0:00:49]} 57. Nc6+ {[%emt 0:00:27]} Ka4 {[%emt 0:00:07]} 58. Rb4+ {[%emt 0:00:11]} Ka3 {[%emt 0:00:01]} 59. Rb6 {[%emt 0:00:08]} Ra8 {[%emt 0:03:41]} 60. Na5 {[%emt 0:00:28]} Nd5 {[%emt 0:04:49]} (60... Ka4 $11 61. Rxe6 Kxa5 62. Rxf6 Kb4) 61. Rxe6 $14 {[%emt 0:00:07]} Kb4 {[%emt 0:00:25]} 62. Re5 $1 {[%emt 0:00:52]} Kxa5 {[%emt 0:00:28] [#]} 63. Rxd5+ {[%emt 0:00:07]} ({Günstiger ist} 63. Rxf5 $1 $16 Rd8 64. e4) 63... Kb4 $11 {[%emt 0:00:07]} 64. Rxf5 {[%emt 0:00:06]} a5 {[%emt 0:00:11]} 65. Rf7 {[%emt 0:00:35]} a4 {[%emt 0:00:27]} 66. Rb7+ {[%emt 0:00:06]} Kc3 {[%emt 0:00:06]} 67. Rb1 {[%emt 0:00:12]} a3 {[%emt 0:03:54]} 68. h3 {[%emt 0:00:07]} Re8 {[%emt 0:00:30]} (68... gxh3+ 69. Kxh3 a2 70. Rc1+ (70. Ra1 Kb2 $15) 70... Kb2 71. Rg1 $17) (68... a2 $15 69. Ra1 Kb2 70. Rxa2+ Rxa2 71. hxg4 Kc3) 69. hxg4 $11 {[%emt 0:00:16]} Rxe2+ $2 {[%emt 0:00:08][%mdl 8192]} (69... a2 $11 70. Ra1 Kb2 71. Rxa2+ Kxa2) 70. Kf3 $18 {[%emt 0:00:03]} Rb2 {[%emt 0:00:42]} 71. Ra1 {[%emt 0:00:03]} Rb3 {[%emt 0:00:07] [#]} 72. Ke4 $2 {[%emt 0:00:15]} (72. Kg2 $1 $18) 72... Kb2 $11 {[%emt 0:00:35]} 73. Rxa3 {[%emt 0:00:08]} Kxa3 {[%emt 0:00:21]} 74. f5 {[%emt 0:02:00]} Rxg3 {[%emt 0:00:09]} 75. Kf4 {[%emt 0:00:02]} Rg1 {[%emt 0:00:11]} 76. f6 {[%emt 0:00:05]} Kb4 {[%emt 0:00:17]} 77. Ke5 {[%emt 0:00:12]} Re1+ {[%emt 0:01:09]} 78. Kf5 {[%emt 0:00:10]} (78. Kd6 $5 Rd1+ $8 79. Ke7 $11) 78... Rf1+ {[%emt 0:00:08]} 79. Ke6 {[%emt 0:02:35]} Re1+ {[%emt 0:00:13]} 80. Kd6 {[%emt 0:00:11]} Rd1+ $1 {[%emt 0:00:13]} 81. Ke7 {[%emt 0:00:10]} Re1+ {[%emt 0:00:15]} 82. Kf8 {[%emt 0:02:22]} (82. Kd6 $5 Rd1+ $8 83. Ke6 Re1+ 84. Kd6 $11) 82... Rg1 {[%emt 0:00:21]} 83. f7 {[%emt 0:00:03]} Rxg4 {[%emt 0:00:04]} 84. Ke7 {[%emt 0:00:02]} Rf4 {[%emt 0:00:07]} 85. f8=Q {[%emt 0:00:04]} Rxf8 {[%emt 0:00:07]} 86. Kxf8 {[%emt 0:00:02]} 1/2-1/2

[Event "Karel Janecek Open 2024"]
[Site "Prague"]
[Date "2024.03.07"]
[Round "9.15"]
[White "Csonka, Balasz"]
[Black "Kusa, Jakub"]
[Result "1/2-1/2"]
[ECO "D30"]
[WhiteElo "2480"]
[BlackElo "2350"]
[Annotator "TA"]
[PlyCount "25"]
[EventDate "2024.02.22"]
[EventType "swiss"]
[EventCountry "CZE"]
[SourceTitle "playchess.com"]
[Source "ChessBase"]
[SourceQuality "1"]
[TimeControl "40/5400+30:1800+30"]

{[%evp 9,25,27,21,23,33,21,32,20,20,17,21,20,26,18,43,57,64,39]} 1. d4 {[%emt 0:00:03]} d5 {[%emt 0:00:15]} 2. c4 {[%emt 0:00:10]} e6 {[%emt 0:00:08]} 3. Nf3 {[%emt 0:00:04]} a6 {[%emt 0:00:19]} 4. Bg5 {[%emt 0:00:07]} Be7 {[%emt 0:00:10]} 5. Bxe7 {[%emt 0:00:04]} Qxe7 {[%emt 0:00:11]} 6. Nbd2 {[%emt 0:00:10]} Nf6 {[%emt 0:00:44]} 7. g3 {[%emt 0:00:22]} b6 {[%emt 0:01:19]} 8. Bg2 {[%emt 0:00:10]} Bb7 {[%emt 0:00:09]} 9. O-O {[%emt 0:01:04]} Nbd7 {[%emt 0:03:35]} 10. Rc1 {[%emt 0:00:39] und nun wäre cxd5 stark für Weiss.} c5 {[%emt 0:00:42]} 11. Ne5 {[%emt 0:02:50]} Nxe5 {[%emt 0:10:16]} 12. dxe5 {[%emt 0:00:12]} Nd7 {[%emt 0:00:14]} 13. f4 {[%emt 0:00:08] Gewichteter Fehlerwert: Weiß=0.02 (makellos) /Schwarz=0.05 (makellos) .  OK:         	Weiß=3     	Schwarz=5} 1/2-1/2

[Event "Karel Janecek Open 2024"]
[Site "Prague"]
[Date "2024.03.07"]
[Round "9.16"]
[White "Klepek, Witold"]
[Black "Muthaiah AL"]
[Result "0-1"]
[ECO "B12"]
[WhiteElo "2262"]
[BlackElo "2464"]
[Annotator "RC"]
[PlyCount "72"]
[EventDate "2024.02.22"]
[EventType "swiss"]
[EventCountry "CZE"]
[SourceTitle "playchess.com"]
[Source "ChessBase"]
[SourceQuality "1"]
[TimeControl "40/5400+30:1800+30"]

1. e4 {[%emt 0:13:06]} c6 {[%emt 0:01:06]} 2. d4 {[%emt 0:00:06]} d5 {[%emt 0:00:29]} 3. e5 {[%emt 0:00:04]} c5 {[%emt 0:01:29]} 4. dxc5 {[%emt 0:00:06]} e6 {[%emt 0:00:10]} 5. a3 {[%emt 0:00:05]} Bxc5 {[%emt 0:01:35]} 6. Nf3 {[%emt 0:00:08]} Ne7 {[%emt 0:01:37]} 7. Bd3 {[%emt 0:04:27]} Ng6 {[%emt 0:01:30]} 8. O-O {[%emt 0:03:40]} O-O {[%emt 0:02:29]} 9. Re1 {[%emt 0:03:02]} Qb6 {[%emt 0:12:19]} 10. Qe2 {[%emt 0:01:38]} Nc6 {[%emt 0:00:29]} 11. b4 {[%emt 0:07:39]} Nd4 {[%emt 0:02:52]} 12. Nxd4 {[%emt 0:09:04]} Bxd4 {[%emt 0:01:01]} 13. Be3 {[%emt 0:00:18]} Bd7 {[%emt 0:09:41]} 14. Nd2 {[%emt 0:01:50]} Ba4 {[%emt 0:05:39]} 15. Qh5 {[%emt 0:08:58]} Bxe3 {[%emt 0:10:58]} 16. Rxe3 {[%emt 0:01:03]} Rac8 {[%emt 0:01:00]} 17. Ra2 {[%emt 0:08:14]} Bb5 {[%emt 0:05:45]} 18. Bxb5 {[%emt 0:11:19]} Qxb5 {[%emt 0:00:21]} 19. Qg4 {[%emt 0:09:11]} d4 {[%emt 0:03:01]} 20. Re1 {[%emt 0:00:46]} Qd5 {[%emt 0:02:23]} 21. Nb3 {[%emt 0:07:02]} d3 {[%emt 0:02:18]} 22. Qd4 {[%emt 0:00:33]} Qxd4 {[%emt 0:01:05]} 23. Nxd4 {[%emt 0:00:07]} Rfd8 {[%emt 0:00:10]} 24. c3 {[%emt 0:01:05]} Rxc3 {[%emt 0:00:20]} 25. Nb5 {[%emt 0:00:42]} Rc2 {[%emt 0:01:11]} 26. Raa1 {[%emt 0:00:04]} d2 {[%emt 0:00:41]} 27. Red1 {[%emt 0:00:14]} Nxe5 {[%emt 0:00:37]} 28. Nxa7 {[%emt 0:00:12]} Nc4 {[%emt 0:00:36]} 29. Kf1 {[%emt 0:00:41]} Nb2 {[%emt 0:01:50]} 30. Ke2 {[%emt 0:00:04]} Na4 {[%emt 0:01:22]} 31. Ke3 {[%emt 0:01:15]} Nc3 {[%emt 0:01:01]} 32. a4 {[%emt 0:00:32]} Nxd1+ {[%emt 0:00:50]} 33. Rxd1 {[%emt 0:00:04]} Rc1 {[%emt 0:00:59]} 34. Rxd2 {[%emt 0:00:21]} Re1+ {[%emt 0:00:18]} 35. Re2 {[%emt 0:00:04]} Rxe2+ {[%emt 0:00:09]} 36. Kxe2 {[%emt 0:00:05]} Ra8 {[%emt 0:00:10]} 0-1

[Event "Karel Janecek Open 2024"]
[Site "Prague"]
[Date "2024.03.07"]
[Round "9.17"]
[White "Belenkaya, Dina"]
[Black "Sofronie, Iulian"]
[Result "0-1"]
[ECO "E90"]
[WhiteElo "2202"]
[BlackElo "2422"]
[Annotator "TA"]
[PlyCount "76"]
[EventDate "2024.02.22"]
[EventType "swiss"]
[EventCountry "CZE"]
[SourceTitle "playchess.com"]
[Source "ChessBase"]
[SourceQuality "1"]
[TimeControl "40/5400+30:1800+30"]

{[%evp 14,76,35,36,35,25,48,44,51,60,80,52,65,12,10,4,9,0,-16,0,0,0,14,4,18,0,0,-7,97,-21,0,0,0,0,0,-42,-13,-119,-80,-562,-558,-1167,-733,-714,-717,-733,-730,-766,-730,-947,-941,-907,-778,-840,-799,-900,-656,-1115,-865,-1013,-845,-1073,-1070,-1047,-1013]} 1. d4 {[%emt 0:07:50]} Nf6 {[%emt 0:00:06]} 2. c4 {[%emt 0:00:09]} g6 {[%emt 0:00:38]} 3. Nc3 {[%emt 0:00:14]} Bg7 {[%emt 0:00:04]} 4. e4 {[%emt 0:00:22]} d6 {[%emt 0:00:11]} 5. Nf3 {[%emt 0:00:08]} O-O {[%emt 0:00:06]} 6. Bd3 {[%emt 0:00:06]} e5 {[%emt 0:01:12]} 7. d5 {[%emt 0:00:15]} a5 {[%emt 0:00:56]} 8. O-O {[%emt 0:02:57]} Na6 {[%emt 0:02:48]} 9. Bc2 {[%emt 0:07:25]} h6 {[%emt 0:03:39]} 10. a3 {[%emt 0:04:17]} Bd7 {[%emt 0:17:19] White is slightly better.} 11. Rb1 {[%emt 0:01:18]} Nh5 {[%emt 0:01:13][%cal Bf6h5,Bh5f4,Bf4e2][%mdl 32]} 12. Ne1 {[%emt 0:08:15]} Nf4 {[%emt 0:09:40]} 13. Ne2 {[%emt 0:02:01]} (13. Be3 $14) 13... Nxe2+ $11 {[%emt 0:03:26]} 14. Qxe2 {[%emt 0:03:48]} a4 {[%emt 0:00:05]} 15. Nd3 {[%emt 0:07:32]} f5 {[%emt 0:01:04]} 16. exf5 {[%emt 0:01:08]} gxf5 {[%emt 0:04:53]} 17. Qd1 {[%emt 0:15:03]} Qe8 {[%emt 0:02:43]} 18. Re1 {[%emt 0:01:24]} Qg6 {[%emt 0:00:30]} 19. b4 {[%emt 0:15:34][%cal Od3b2]} axb3 {[%emt 0:00:22]} 20. Rxb3 {[%emt 0:00:05]} b6 {[%emt 0:00:28] [#]} (20... Rab8 $11 {remains equal.}) 21. Nb4 {[%emt 0:06:54]} ({Only move:} 21. Nxe5 $1 $16 dxe5 (21... Bxe5 $2 {perishes.} 22. Rxe5 Qf6 23. Re1 $18) 22. Rg3) 21... Nxb4 {[%emt 0:00:17]} (21... Qf7 {simplifies} 22. Nxa6 Rxa6 23. Rf3 Qh5) 22. Rg3 {[%emt 0:01:56]} Qf6 {[%emt 0:02:30]} 23. axb4 {[%emt 0:00:01]} Ra1 {[%emt 0:02:19]} 24. Qd2 {[%emt 0:00:50][%cal Oc1b2]} e4 {[%emt 0:10:33] And now ...f4 would win.} 25. Bd1 {[%emt 0:03:00] [#]} (25. Qf4 $1 $11) 25... f4 $1 $17 {[%emt 0:04:41]} 26. Rb3 {[%emt 0:05:40][%mdl 8192] [#] This costs White the game.} ({Wrong is} 26. Bb2 $2 Qxb2 27. Qxb2 fxg3 $19) (26. Rxg7+ $17 Qxg7 27. Kh1) 26... e3 $1 $19 {[%emt 0:00:38][%mdl 512] White is weak on the dark squares. Black is clearly winning.} 27. Qb2 {[%emt 0:03:46]} (27. fxe3 fxe3) 27... exf2+ {[%emt 0:00:16]} 28. Qxf2 {[%emt 0:00:46]} Rxc1 {[%emt 0:00:06]} 29. Rd3 {[%emt 0:00:14]} Rxc4 {[%emt 0:01:22]} 30. b5 {[%emt 0:01:08]} Rd4 {[%emt 0:02:09]} 31. Bc2 {[%emt 0:01:19]} Rxd3 {[%emt 0:00:20]} 32. Bxd3 {[%emt 0:00:06]} Qd4 {[%emt 0:00:09]} 33. Qxd4 {[%emt 0:00:30]} Bxd4+ {[%emt 0:00:06]} 34. Kf1 {[%emt 0:00:01]} Bf5 {[%emt 0:00:35]} 35. Bc4 {[%emt 0:00:14]} Kf7 {[%emt 0:00:18]} 36. Be2 {[%emt 0:00:14]} Kf6 {[%emt 0:00:06]} 37. Rc1 {[%emt 0:00:15]} Ra8 {[%emt 0:00:09]} 38. Ke1 {[%emt 0:00:15]} Ra1 {[%emt 0:00:08] Weighted Error Value: White=0.96/Black=0.57.  Loses game:     	White=1     	---        Mistake:       	White=3     	Black=1      Inaccurate:     	White=3     	Black=2      OK:         	White=4     	Black=5      Best:        	White=1     	Black=1      Strong:       	---       	Black=1} 0-1